Cogmind - Beta 15 @@@ ROGUE MODE // 2025.05.22 @ 20:17:37 // AFD2020/Player2 Player: Demo Result: Core destroyed Performance ------------- Evolutions (5) 2500 Regions Visited (8) 1600 Robots Destroyed (104) 520 Value Destroyed (4313) 4313 Prototype IDs (19) 380 Alien Tech Used (0) 0 Bonus (4271) 4271 TOTAL SCORE: 13584 Bonus ------- Triggered High Security 500 High Alert Combat Kills 1209 Follower Combat Kills 2987 Entered Garrisons 200 Friendly Fire -625 Cogmind --------- Core Integrity 0/1000 Matter 285/300 Energy 131/150 System Corruption 19% Temperature Warm (171) Movement Hovering (141) Location -5/Factory Parts ------- > --- POWER (1) -------- Micro Fission Core > --- PROPULSION (6) --- Hovering Airjet-Gravmag Exoskeleton > --- UTILITY (8) ------ Armored Scrap Engine High-capacity Storage Unit Active Sensor Suite Layered Medium Armor Plating Layered Medium Armor Plating > --- WEAPON (2) ------- Advanced EMP Blaster > --- INVENTORY (20) --- Advanced Power Amplifier Improved Cooling System Advanced Cooling System Improved Energy Well (400) Matter Compressor (250) Enhanced Optical Array Improved Terrain Scanner Advanced Terrain Scan Processor Improved Weapon Cycler Advanced Transmission Jammer Advanced Hardlight Generator Authchip [Processor] Authchip [Processor] Relay Coupler [Grunt] (28) Relay Coupler [Proto] (9) Dynamic Insulation System Improved Remote Datajack Plasma Cutter Multitool Peak State ------------ > --- POWER ------------ F-cell Engine > --- PROPULSION ------- Hovering Airjet-Gravmag Exoskeleton > --- UTILITY ---------- Armored Scrap Engine Improved Cooling System High-capacity Storage Unit Active Sensor Suite Advanced Transmission Jammer > --- WEAPON ----------- Wave Gun Heavy Plasma Cannon > --- INVENTORY -------- Light Angular Momentum Engine Advanced Power Amplifier Energy Well Matter Compressor Improved Terrain Scanner Advanced Terrain Scan Processor Layered Medium Armor Plating Layered Medium Armor Plating Advanced Hardlight Generator Authchip [Processor] Authchip [Processor] Relay Coupler [Grunt] Relay Coupler [Proto] Relay Coupler [Proto] Dynamic Insulation System Advanced EMP Blaster Improved Remote Datajack Plasma Cutter Multitool [Rating: 127] Favorites ----------- Power Light Ion Engine Engine Light Ion Engine Power Core Light Fission Core Propulsion Wheel Treads Light Treads Wheel Wheel Hover Unit Constructs Flight Unit Improved Flight Unit Utility High-capacity Storage Unit Device Armored Scrap Engine Storage High-capacity Storage Unit Processor Improved Signal Interpreter Hackware System Shield Protection Core Shielding Weapon Advanced Beam Cannon Energy Gun Heavy EM Shotgun Energy Cannon Advanced Beam Cannon Ballistic Gun Battle Rifle Ballistic Cannon Hardcell Cannon Launcher Advanced EMP Blaster Special Weapon Plasma Cutter Impact Weapon Mace Build | -11 -10 -10 -8 -8 -8 -6 -6 -5 ------- Run | Yrd Mat Sub Mat Sto Rec Fac Gar Fac Slots Evolved 10 | . . . 4 . . 4 . 2 Power . | . . . . . . . . . Propulsion 4 | . . . . . . 4 . . Utility 6 | . . . 4 . . . . 2 Weapon . | . . . . . . . . . Parts Attached 111 | 10 3 12 17 29 11 5 15 9 Power 18 | 2 1 . 2 3 3 2 3 2 Engine 15 | 2 1 . 2 3 2 1 3 1 Core 3 | . . . . . 1 1 . 1 Reactor . | . . . . . . . . . Propulsion 18 | 3 1 2 1 7 2 1 1 . Treads 3 | 1 . 1 . . . . 1 . Leg . | . . . . . . . . . Wheel 13 | 2 1 1 1 5 2 1 . . Hover . | . . . . . . . . . Flight 2 | . . . . 2 . . . . Utility 38 | 2 . 1 11 8 4 2 4 6 Device 20 | 1 . . 6 5 2 . 3 3 Storage 7 | 1 . . 2 1 1 . 1 1 Processor 1 | . . . 1 . . . . . Hackware 2 | . . . . . . 2 . . Protection 8 | . . 1 2 2 1 . . 2 Artifact . | . . . . . . . . . Weapon 37 | 3 1 9 3 11 2 . 7 1 Energy Gun 16 | 1 1 2 3 5 . . 4 . Energy Cannon 6 | . . . . 3 1 . 1 1 Ballistic Gun 8 | 2 . 4 . 2 . . . . Ballistic Cannon 1 | . . . . . . . 1 . Launcher 3 | . . 1 . 1 . . 1 . Special Weapon 2 | . . 1 . . 1 . . . Impact Weapon 1 | . . 1 . . . . . . Slashing Weapon . | . . . . . . . . . Piercing Weapon . | . . . . . . . . . Special Melee Weapon . | . . . . . . . . . Unidentified Prototypes 16 | . . . 2 10 1 1 1 1 Corrupted Parts 4 | . . . . 3 . . . 1 System Corruption 14 | . . . . 7 . . . 7 Parts Lost 24 | . . 3 4 12 . . 2 3 Power 3 | . . . . 2 . . . 1 Propulsion 4 | . . 1 1 2 . . . . Utility 9 | . . . 3 5 . . 1 . Weapon 8 | . . 2 . 3 . . 1 2 Highest Loss Streak 11 | . . 1 3 11 . . 1 3 To Critical Strikes . | . . . . . . . . . Average Backups 15 | 2 7 7 9 13 19 19 19 19 Power . | . . . . . 1 . . . Propulsion . | 1 3 1 . . 1 1 . . Utility 8 | . 1 3 4 6 7 11 14 15 Weapon 2 | . . 1 1 3 5 4 2 . Tool/Special . | . . . . . . . . . Unused Backups 51 | . 2 4 3 3 9 2 12 16 Power 1 | . . . 1 . . . . . Propulsion 6 | . 1 1 . . 4 . . . Utility 37 | . 1 2 2 1 4 2 10 15 Weapon 5 | . . 1 . 2 1 . 1 . Tool/Special 2 | . . . . . . . 1 1 Average Slot Usage (%) 80 | . 100 99 96 92 94 72 57 51 Engine 7 | . 14 14 9 8 6 . 4 4 Treads 5 | . 14 18 9 1 . . 3 4 Wheel 9 | . 14 9 8 14 17 15 6 . Device 15 | . 14 4 16 21 23 16 9 22 Storage 9 | . 14 14 9 9 13 6 6 5 Processor 3 | . . . 3 9 9 6 3 . Hackware 1 | . . . . . . 2 6 . Protection 6 | . . 9 21 9 4 . . . Energy Gun 6 | . 14 11 9 8 . . 8 2 Energy Cannon 5 | . . . . 5 17 13 2 7 Ballistic Gun 3 | . 14 14 8 . . . . . Peak Build Rating 127 | 7 8 12 28 32 48 61 115 127 Average Rating 50 | 5 7 10 25 26 36 56 86 115 On Entrance 33 | . 7 8 12 27 28 48 58 115 Naked Turns . | . . . . . . . . . Heaviest Build 80 | 13 13 20 39 59 68 58 70 80 Greatest Support 188 | 16 10 40 40 26 30 66 188 165 Greatest Overweight (x) 6 | 1 1 1 3 3 6 2 2 . Average Overweight (x) 1 | . 1 . 2 1 2 1 . . Largest Inventory Capacity 20 | 8 8 8 15 20 20 20 20 20 Average Capacity 16 | 7 8 8 11 15 20 20 20 20 Most Carried 20 | 8 8 8 15 17 20 20 20 20 Average Carried 15 | 2 7 7 10 14 19 19 19 19 Final Capacity 20 | 8 8 8 15 20 20 20 20 20 Final Carried 20 | 8 8 8 15 17 20 19 20 19 Scrap Engine Consumption 79 | . . . . . 14 6 42 17 Constructs Created 1 | . . . . . . 1 . . Constructs Modified 17 | . . . . . . 3 11 3 Class Distribution -------------------- 29% | Mutant 27% | Commander-Mutant 25% | Construct 11% | Scavenger-Mutant 5% | Hacker-Mutant Dominant Class ---------------- Mutant | -10/Materials Mutant | -10/Subcaves Mutant | -8/Materials Scavenger-Mutant | -8/Storage Commander-Mutant | -8/Recycling Commander-Mutant | -6/Factory Construct | -6/Garrison Construct | -5/Factory Resources | -11 -10 -10 -8 -8 -8 -6 -6 -5 ----------- Run | Yrd Mat Sub Mat Sto Rec Fac Gar Fac Matter Collected 3486 | 321 135 262 927 549 250 179 661 202 Remotely 113 | . . . 113 . . . . . Salvage Created 5237 | 206 79 302 788 757 121 . 1841 1143 Parts 248 | 11 3 13 49 47 4 . 73 48 Haulers Intercepted 5 | . 1 . 3 . . . . 1 Recyclers Shooed 3 | . . . . 2 . . . 1 Parts Field Recycled . | . . . . . . . . . Retrieved Matter . | . . . . . . . . . Parts Self-Destructed 3 | . . 3 . . . . . . Prevented . | . . . . . . . . . Kills | -11 -10 -10 -8 -8 -8 -6 -6 -5 ------- Run | Yrd Mat Sub Mat Sto Rec Fac Gar Fac Combat Hostiles Destroyed 70 | . 1 7 14 9 3 . 20 16 Guns 28 | . 1 6 12 2 . . 4 3 Cannons 15 | . . . . 1 3 . 5 6 AOE 21 | . . 1 . 6 . . 10 4 Classes Destroyed 17 | 3 3 1 5 2 . . 1 2 Worker 6 | 2 . . 2 2 . . . . Builder 4 | . . . 1 3 . . . . Tunneler 4 | 3 . . 1 . . . . . Hauler 5 | . 1 . 3 . . . . 1 Recycler 4 | 1 . . . 2 . . . 1 Mechanic 1 | . . . . . . . . 1 Operator 5 | . 1 . 2 1 . . 1 . Watcher 2 | . . . 1 1 . . . . Swarmer 15 | . 1 . 4 2 . . 6 2 Cutter 1 | . . . . . . . 1 . Grunt 32 | . . . 7 4 . . 14 7 Duelist 2 | . . . . 1 . . 1 . Sentry 3 | . . . . 2 . . . 1 Specialist 2 | . . . 1 . . . . 1 Hunter 7 | . . . 2 . . . 1 4 Programmer 1 | . . . . . . . . 1 Subdweller 10 | . . 7 . . 3 . . . Best Kill Streak 7 | 3 1 2 6 7 1 . 5 5 Combat Bots Only 6 | . 1 2 6 5 1 . 5 4 Max Kills in Single Turn 3 | 1 1 1 1 3 1 . 3 1 Gunslinging . | . . . . . . . . . Exploded 2 | . . 1 . 2 . . 2 1 Melee . | . . . . . . . . . Uniques/NPCs Destroyed . | . . . . . . . . . Combat | -11 -10 -10 -8 -8 -8 -6 -6 -5 -------- Run | Yrd Mat Sub Mat Sto Rec Fac Gar Fac Hostile Shots Fired 588 | . 8 40 72 101 11 . 122 234 Missed 194 | . 2 19 19 27 7 . 27 93 Hits 394 | . 6 21 53 74 4 . 95 141 Melee 15 | . . . . 7 . . 8 . Projectile 379 | . 6 21 53 67 4 . 87 141 AOE 2 | . . . . . . . 1 1 Critical Strikes 22 | . . 2 3 8 . . 2 7 Actively Blocked 1 | . . 1 . . . . . . Damage Taken 7170 | . 44 433 867 1464 79 . 1629 2654 Core 734 | . 7 120 36 245 18 . 92 216 Absorbed by Shields . | . . . . . . . . . Redirected to Shielding 17 | . . 9 8 . . . . . Regen/Repaired (Parts) 1533 | . . . . . . 5 317 1211 Core Remaining (%) 43 | 100 . 30 . . 30 . 13 . Volleys Fired 432 | 19 13 62 70 49 13 1 147 58 Largest 2 | 2 2 2 2 2 2 2 2 2 Hottest 180 | 70 85 85 106 136 136 136 171 180 Shots Fired 675 | 38 26 83 132 66 27 2 208 93 Gun 467 | 38 26 75 132 40 . . 140 16 Cannon 169 | . . . . 20 27 2 52 68 Launcher 36 | . . 5 . 6 . . 16 9 Special 3 | . . 3 . . . . . . Kinetic 174 | 19 13 62 79 1 . . . . Thermal 311 | 19 13 4 2 30 27 2 130 84 Explosive . | . . . . . . . . . Electromagnetic 190 | . . 17 51 35 . . 78 9 Robot Hit Streak 35 | 8 7 12 11 8 5 3 35 10 Robot Miss Streak 6 | 1 4 4 4 4 3 1 6 5 Penetration Max . | . . . . . . . . . Secondary Targets 4 | . . 1 3 . . . . . Max Gunslinging Chain 1 | . . 1 1 . . . . . Shots Hit Robots 404 | 25 14 42 89 46 14 1 120 53 Core Hits 249 | 9 7 18 44 34 4 . 90 43 Critical Kills 4 | . . . . . . . 2 2 Critical Parts Destroyed . | . . . . . . . . . Critical Strikes 12 | 3 . 1 . 1 . . 4 3 Burn 7 | 3 . . . 1 . . 2 1 Meltdown 4 | . . . . . . . 2 2 Destroy 1 | . . 1 . . . . . . Melee Attacks 1 | . . 1 . . . . . . Impact 1 | . . 1 . . . . . . Slashing . | . . . . . . . . . Piercing . | . . . . . . . . . Sneak Attacks . | . . . . . . . . . Combat Hostiles . | . . . . . . . . . Follow-up Attacks . | . . . . . . . . . Damage Inflicted 12785 | 257 172 710 1714 2093 291 20 4342 3186 Guns 5384 | 257 172 538 1629 572 . . 1876 340 Cannons 2866 | . . . . 257 291 20 770 1528 Explosions 4506 | . . 172 85 1264 . . 1696 1289 Melee . | . . . . . . . . . Ramming 29 | . . . . . . . . 29 Kinetic 1968 | 92 63 568 906 339 . . . . Thermal 6355 | 165 109 . 120 921 291 20 2628 2101 Explosive 48 | . . . . . . . 48 . Electromagnetic 4385 | . . 142 688 833 . . 1666 1056 Impact . | . . . . . . . . . Slashing . | . . . . . . . . . Piercing . | . . . . . . . . . Highest Corruption 19 | . . . . 7 8 . . 19 Average Corruption 6 | . . . . 6 7 . . 3 Corruption Purged . | . . . . . . . . . Corruption Blocked . | . . . . . . . . . Effects 67 | . . . . 7 50 . . 10 Message Errors 17 | . . . . 1 16 . . . Matter Fused 11 | . . . . 2 8 . . 1 Heat Flow Errors 6 | . . . . 1 3 . . 2 Energy Discharges 13 | . . . . 1 9 . . 3 Parts Rejected 2 | . . . . . 1 . . 1 Data Loss (minor) 10 | . . . . 1 9 . . . Data Loss (major) 2 | . . . . . 1 . . 1 Misfires 3 | . . . . 1 2 . . . Alerts 1 | . . . . . 1 . . . Weapon Failures 2 | . . . . . . . . 2 Overload Shots . | . . . . . . . . . Overflow Damage 92 | . . . . 43 . . 10 39 Projectiles 42 | . . . . 14 . . . 28 Explosions 50 | . . . . 29 . . 10 11 Melee . | . . . . . . . . . Knockbacks . | . . . . . . . . . Impact . | . . . . . . . . . Kinetic . | . . . . . . . . . Secondary . | . . . . . . . . . Self-Inflicted Damage 523 | . . . 55 208 . . 165 95 Shots 15 | . . . 1 7 . . 5 2 Rammed 2 | . . . . . . . . 2 Targets Rammed 2 | . . . . . . . . 2 Kicked . | . . . . . . . . . Crushed . | . . . . . . . . . Highest Temperature 480 | 140 90 4 72 369 95 . 480 253 Average Temperature 81 | 55 37 3 19 128 78 . 96 57 Received Heat Transfer 1872 | . . 66 360 486 21 . 354 585 Effects 9 | . . . . 4 . . 5 . Shutdowns 1 | . . . . . . . 1 . Energy Bleed 1 | . . . . 1 . . . . Interference 7 | . . . . 3 . . 4 . Siege Activations . | . . . . . . . . . Martial Activations . | . . . . . . . . . Shielding Activations . | . . . . . . . . . Robots Disrupted 1 | . . . . 1 . . . . Combat Hostiles 1 | . . . . 1 . . . . Robots Corrupted 5 | . . . 2 . . . 1 2 Combat Hostiles 4 | . . . 2 . . . . 2 Parts Fried 12 | . . . 3 1 . . 5 3 Impact Corruptions . | . . . . . . . . . Robots Melted 4 | . . . . . . . 2 2 Combat Hostiles 2 | . . . . . . . 1 1 Parts Melted 25 | 3 1 . . . 3 . 8 10 Heat Transferred 10323 | 703 268 . 174 1366 518 37 4473 2784 Parts Sabotaged . | . . . . . . . . . Parts Stolen . | . . . . . . . . . Parts Stripped . | . . . . . . . . . Power Chain Reactions 22 | . . . 1 7 . . 12 2 Alert | -11 -10 -10 -8 -8 -8 -6 -6 -5 ------- Run | Yrd Mat Sub Mat Sto Rec Fac Gar Fac Maximum Alert Level 5 | . . . 1 3 1 2 5 5 Low Security (%) 30 | 100 100 . 41 36 60 . . . Level 1 20 | . . . 58 1 39 . 10 . Level 2 12 | . . . . 37 . 100 16 . Level 3 10 | . . . . 23 . . 13 32 Level 4 15 | . . . . . . . 33 41 Level 5 8 | . . . . . . . 25 6 High Security 2 | . . . . . . . . 19 Max Security . | . . . . . . . . . Peak Influence 2572 | 10 94 . 345 718 324 517 2027 2572 Initial 1064 | . . . . 137 270 505 293 1064 Average 648 | 1 23 . 197 432 144 455 1170 1461 Influence Increases 7086 | 30 177 25 827 1024 218 594 2134 2057 Destroy 0b10 Robot/C 2840 | . 80 20 420 420 20 20 980 880 Destroy 0b10 Robot/NC 275 | 30 10 . 50 65 . 5 75 40 Destroy Leader 432 | . 12 . 98 94 . 10 50 168 Allied During Kill 890 | . 13 5 133 103 19 33 329 255 Successful Hack 134 | . 17 . 15 20 13 26 14 29 Select Force Hacks 150 | . . . . . 150 . . . Disable Machine 435 | . 15 . 45 90 15 . 75 195 Anti-Garrison Action 550 | . . . . 150 . . 400 . Destroy Structure 410 | . . . 6 37 1 . 166 200 Advance Influence 500 | . . . . . . 500 . . Partial Spotted 30 | . . . 15 . . . . 15 Lose Combat Pursuer 240 | . 30 . 45 45 . . 45 75 Active Sensor Use 200 | . . . . . . . . 200 Influence Decreases 4499 | 30 103 99 500 656 899 189 526 1497 Entered New Map 1749 | . . 36 . 190 425 9 126 963 Time Decay 1880 | 30 103 63 420 286 474 170 . 334 Lost Part 750 | . . . 80 180 . 10 280 200 Lost Ally 120 | . . . . . . . 120 . Squads Dispatched 21 | . 1 . 4 6 . 1 . 9 Investigation 4 | . . . 1 1 . . . 2 Extermination 2 | . . . . . . 1 . 1 Reinforcement 6 | . 1 . 3 2 . . . . Assault 8 | . . . . 2 . . . 6 Garrison 1 | . . . . 1 . . . . Intercept . | . . . . . . . . . Searches Triggered . | . . . . . . . . . Construction Impeded . | . . . . . . . . . Haulers Reinforced . | . . . . . . . . . Active Scanning Responses 3 | . . . . . . . 1 2 Cargo Convoy Interrupts 1 | . . . . . . . . 1 Stealth | -11 -10 -10 -8 -8 -8 -6 -6 -5 --------- Run | Yrd Mat Sub Mat Sto Rec Fac Gar Fac Distress Signals 5 | . . . 1 2 . . . 2 Communications Jammed 37 | . . . . . . . . 37 Distress Signals 37 | . . . . . . . . 37 Times Spotted 186 | . 8 10 29 30 5 . 44 60 Peak Tracking Total 14 | . 3 2 6 9 1 . 8 14 Tactical Retreats 11 | . 1 . 2 2 . . 3 3 Traps | -11 -10 -10 -8 -8 -8 -6 -6 -5 ------- Run | Yrd Mat Sub Mat Sto Rec Fac Gar Fac Traps Triggered 12 | . . . . 3 . . 3 6 Indirectly 3 | . . . . 2 . . . 1 Trap Hack Attempts . | . . . . . . . . . Triggered . | . . . . . . . . . Disarmed . | . . . . . . . . . Reprogrammed . | . . . . . . . . . Reused . | . . . . . . . . . Traps Extracted . | . . . . . . . . . Installed . | . . . . . . . . . Triggered . | . . . . . . . . . Machines | -11 -10 -10 -8 -8 -8 -6 -6 -5 ---------- Run | Yrd Mat Sub Mat Sto Rec Fac Gar Fac Machines Disabled 38 | . 1 . 3 7 1 . 13 13 Max in Single Turn 3 | . . . 1 1 1 . 2 3 Garrison Access 1 | . . . . 1 . . . . Garrison Relay 1 | . . . . . . . 1 . Phase Generator 1 | . . . . . . . 1 . Machines Repaired 1 | . . . . . 1 . . . Machines Dismantled 5 | . . . . 3 . . 2 . Machines Sabotaged . | . . . . . . . . . Overloaded Fab Kills . | . . . . . . . . . Hacking | -11 -10 -10 -8 -8 -8 -6 -6 -5 --------- Run | Yrd Mat Sub Mat Sto Rec Fac Gar Fac Machines Accessed 36 | . 4 . 6 4 11 4 3 4 Terminals 24 | . 4 . 5 4 5 1 3 2 Fabricators . | . . . . . . . . . Repair Stations . | . . . . . . . . . Recycling Units 9 | . . . . . 5 2 . 2 Scanalyzers 1 | . . . 1 . . . . . Garrison Access 1 | . . . . . . 1 . . Total Hacks 90 | . 11 . 20 11 26 10 5 7 Successful 47 | . 4 . 13 7 15 3 1 4 Failed 43 | . 7 . 7 4 11 7 4 3 Catastrophic 7 | . 1 . . 2 1 2 1 . Database Lockouts . | . . . . . . . . . Manual 54 | . 6 . 9 7 17 6 4 5 Terminals 58 | . 11 . 12 11 13 3 5 3 Fabricators . | . . . . . . . . . Repair Stations . | . . . . . . . . . Recycling Units 19 | . . . . . 10 5 . 4 Scanalyzers 8 | . . . 8 . . . . . Garrison Access 2 | . . . . . . 2 . . Terminal Hacks 15 | . 3 . 2 1 7 . 1 1 Record 1 | . . . . . 1 . . . Robot Analysis 5 | . 1 . 1 . 3 . . . Prototype ID Bank 1 | . . . . . 1 . . . Open DSF 1 | . . . . . . . . 1 Branch Access Points 1 | . 1 . . . . . . . Alert Level 1 | . . . 1 . . . . . Hauler Manifests 1 | . 1 . . . . . . . Zone Layout 1 | . . . . 1 . . . . Garrison Registry 1 | . . . . . . . 1 . Release Object 2 | . . . . . 2 . . . Fabricator Hacks . | . . . . . . . . . Repair Station Hacks . | . . . . . . . . . Recycling Unit Hacks 2 | . . . . . 1 . . 1 Retrieve Components 2 | . . . . . 1 . . 1 Scanalyzer 7 | . . . 7 . . . . . Insert Component 4 | . . . 4 . . . . . Analyze 3 | . . . 3 . . . . . Garrison Access Hacks 1 | . . . . . . 1 . . Unlock Access 1 | . . . . . . 1 . . Unauthorized Hacks 22 | . 1 . 4 6 7 2 . 2 Terminals 15 | . 1 . 4 6 2 1 . 1 Track 1 | . . . . 1 . . . . Botnet 12 | . 1 . 3 4 2 1 . 1 Operators 2 | . . . 1 1 . . . . Fabricators . | . . . . . . . . . Repair Stations . | . . . . . . . . . Recycling Units 7 | . . . . . 5 1 . 1 Reject 1 | . . . . . . . . 1 Recyclers 1 | . . . . . . 1 . . Tunnel 5 | . . . . . 5 . . . Scanalyzers . | . . . . . . . . . Garrison Access . | . . . . . . . . . Data Cores Recovered . | . . . . . . . . . Used . | . . . . . . . . . Hacking Detections 25 | . 4 . 6 4 3 4 . 4 Full Trace Events 10 | . 1 . 1 2 5 . 1 . Feedback Events 2 | . . . . . 1 . 1 . Corruption 1 | . . . . . 1 . . . Hackware Fried 1 | . . . . . . . 1 . Feedback Blocked . | . . . . . . . . . Robot Schematics Acquired . | . . . . . . . . . Robots Built . | . . . . . . . . . Authchips . | . . . . . . . . . Time . | . . . . . . . . . Total Robot Build Rating . | . . . . . . . . . Part Schematics Acquired 3 | . . . 3 . . . . . Parts Built . | . . . . . . . . . Authchips . | . . . . . . . . . Time . | . . . . . . . . . Total Part Build Rating . | . . . . . . . . . Parts Repaired . | . . . . . . . . . Time . | . . . . . . . . . Parts Recycled . | . . . . . . . . . Recycled Matter . | . . . . . . . . . Retrieved Matter . | . . . . . . . . . Retrieved Components 11 | . . . . . 1 . . 10 Parts Scanalyzed 3 | . . . 3 . . . . . Part Schematics Acquired 3 | . . . 3 . . . . . Parts Damaged . | . . . . . . . . . Bothacking | -11 -10 -10 -8 -8 -8 -6 -6 -5 ------------ Run | Yrd Mat Sub Mat Sto Rec Fac Gar Fac Used RIF Installer . | . . . . . . . . . Robots Hacked . | . . . . . . . . . Non-combat . | . . . . . . . . . Combat . | . . . . . . . . . Robot Hacks Applied . | . . . . . . . . . Relay Couplers Released 5 | . . . . 1 . . 4 . Machine Destruction 5 | . . . . 1 . . 4 . Fabnet Peak Effective % . | . . . . . . . . . Robots Rewired . | . . . . . . . . . Allies Hacked 1 | . . . . . . 1 . . Hacks Repelled . | . . . . . . . . . Allies | -11 -10 -10 -8 -8 -8 -6 -6 -5 -------- Run | Yrd Mat Sub Mat Sto Rec Fac Gar Fac Total Allies 11 | . 1 . . 10 . . . . Largest Group 11 | . 1 1 1 11 11 11 11 1 Highest-Rated Group 267 | . 60 64 78 255 255 267 267 125 Highest-Rated Ally 125 | . 60 64 78 82 82 97 119 125 Initial Warlord ECA Mod 5 | . . . . . . . . 5 Total Orders . | . . . . . . . . . Ally Attacks 404 | . 15 18 57 59 31 4 146 74 Total Damage 12270 | . 250 481 611 1486 482 99 5207 3654 Kills 98 | . 3 3 7 14 6 2 30 33 Allies Corrupted . | . . . . . . . . . Allies Melted . | . . . . . . . . . Intel | -11 -10 -10 -8 -8 -8 -6 -6 -5 ------- Run | Yrd Mat Sub Mat Sto Rec Fac Gar Fac Active Infowar (turns) 3015 | 84 348 300 615 330 . . 734 604 A.S.S. 1029 | . . . . . . . 592 437 Terrain 142 | . . . . . . . 142 . Structural 914 | . . . 584 330 . . . . Seismic 763 | 84 348 300 31 . . . . . Jamming 260 | . . . . . . . . 260 Robot Analysis Total 5 | . 1 . 1 . 3 . . . Derelict Logs Recovered 1 | . . 1 . . . . . . Drone Launches . | . . . . . . . . . Drone Recoveries . | . . . . . . . . . Exploration | -11 -10 -10 -8 -8 -8 -6 -6 -5 ------------- Run | Yrd Mat Sub Mat Sto Rec Fac Gar Fac Turns Passed 8007 | 193 348 1002 1163 638 1418 348 1960 937 Spaces Moved 5369 | 122 287 731 666 293 1070 263 1157 780 Core 11 | 11 . . . . . . . . Treads 1406 | . . 134 5 3 . . 527 737 Legs 97 | . . . . . . . 97 . Wheels 3812 | 111 287 597 661 290 1070 263 533 . Hover 43 | . . . . . . . . 43 Flight . | . . . . . . . . . Fastest Speed 50 | 50 95 95 95 95 110 95 85 78 Average Speed 106 | 94 95 106 117 108 116 108 108 83 Slowest Speed 240 | 100 95 160 160 240 170 159 142 141 Overloaded Moves . | . . . . . . . . . Propulsion Burnouts . | . . . . . . . . . Robots Hopped . | . . . . . . . . . Potential Cave-ins . | . . . . . . . . . Cave-ins Triggered . | . . . . . . . . . Exploration Rate (%) 41 | 6 42 34 50 44 98 6 73 17 Regions Visited 8 Branch Regions 3 Pre-discovered Areas 6 | . . 1 . . 5 . . . Known Exits Taken 4 | . . . 1 1 1 1 . . Unknown Exits Taken 3 | 1 1 1 . . . . . . Scrap Searched 7 | . . 7 . . . . . . Spaces Dug 28 | . . 13 . 7 1 . . 7 Terrain Destroyed 336 | . . 59 5 38 1 . 177 56 Melee . | . . . . . . . . . Projectile 21 | . . . . . 1 . 1 19 AOE 315 | . . 59 5 38 . . 176 37 Terrain Rammed . | . . . . . . . . . Walls Destroyed . | . . . . . . . . . Machines Disabled . | . . . . . . . . . Actions | -11 -10 -10 -8 -8 -8 -6 -6 -5 --------- Run | Yrd Mat Sub Mat Sto Rec Fac Gar Fac Total 6976 | 162 343 865 922 512 1217 326 1650 979 Wait 679 | 1 26 34 129 39 74 31 244 101 Move 5361 | 121 286 730 665 292 1069 262 1156 780 Hop . | . . . . . . . . . Pick Up 110 | 8 7 8 14 19 18 6 22 8 Fast Attach 68 | 10 . . 13 20 7 4 9 5 Attach 30 | . . 3 3 14 2 2 2 4 Detach 9 | . . . 3 4 1 . . 1 Swap 96 | . 3 18 8 21 6 8 23 9 Drop 142 | 3 8 9 17 24 23 11 36 11 Fire 432 | 19 13 62 70 49 13 1 147 58 Melee 1 | . . 1 . . . . . . Ram . | . . . . . . . . . Kick . | . . . . . . . . . Crush 2 | . . . . . . . . 2 Escape Stasis . | . . . . . . . . . Rewire 15 | . . . . 14 . . 1 . Trap . | . . . . . . . . . Miscellaneous 31 | . . . . 16 4 1 10 . Route ------- -11/Scrapyard -10/Materials (discovered 2 exits: *Min / [*Sub]) -10/Subcaves -8/Materials (discovered 2 exits: [*Fac] / *Sto) -8/Storage -8/Recycling -6/Factory (discovered 2 exits: *Low / Gar) -6/Garrison (discovered 3 exits: *Fac x3) -5/Factory (discovered 1 exit: *Fac) History --------- Turn | Location | Event 19 | -11/Scrapyard | Discovered new exit (range 16) 194 | -11/Scrapyard | Entered Materials 261 | -10/Materials | Identified exit to Mines 312 | -10/Materials | Build established: Mutant 373 | -10/Materials | Discovered new exit (range 9) 542 | -10/Materials | Entered Subcaves 646 | -10/Subcaves | Disturbed a concealed Subdweller 692 | -10/Subcaves | Learned location of Mines (-10) 906 | -10/Subcaves | Shifting Twisted Machinery released Sub. Shrapnel Launcher 911 | -10/Subcaves | Shifting Twisted Machinery released Mak. Hammer 1206 | -10/Subcaves | A swath of the cavern ceiling suddenly collapsed 1287 | -10/Subcaves | Core integrity fell below 50% 1408 | -10/Subcaves | Ambushed by Subdwellers from Twisted Machinery 1448 | -10/Subcaves | Discovered new exit (range 11) 1544 | -10/Subcaves | Entered Materials 1544 | -8/Materials | Evolved 4 slots: Utility x4 1719 | -8/Materials | Lost 3 parts (1n2u) 1983 | -8/Materials | Discovered new exit (range 10) 2153 | -8/Materials | Build established: Scavenger-Mutant 2615 | -8/Materials | Discovered new exit (range 15) 2621 | -8/Materials | Build established: Mutant 2666 | -8/Materials | Identified exit to Storage 2707 | -8/Materials | Entered Storage 2934 | -8/Storage | Garrison activated, responded to threat 3056 | -8/Storage | Core integrity fell below 50% 3092 | -8/Storage | Lost 11 parts (2p2n4u3w) 3232 | -8/Storage | Assisted by bots powering up and referring to "LRC-V3" 3314 | -8/Storage | Used back door to open Recycling access 3314 | -8/Storage | Discovered new exit (range 5) 3317 | -8/Storage | Identified exit to Recycling 3345 | -8/Storage | Entered Recycling 3345 | -8/Recycling | Accompanied by 10 allies 3561 | -8/Recycling | Build established: Commander-Mutant 4176 | -8/Recycling | Entered Scraplab 4235 | -8/Recycling | Found Prototype Device 4235 | -8/Recycling | Identified Scrap Engine 4659 | -8/Recycling | Discovered new exit (range 6) 4681 | -8/Recycling | Identified exit to Factory 4763 | -8/Recycling | Entered Factory 4763 | -6/Factory | Accompanied by 10 allies 4763 | -6/Factory | Evolved 4 slots: Propulsion x4 5010 | -6/Factory | Discovered new exit (range 5) 5014 | -6/Factory | Identified exit to Lower Caves 5077 | -6/Factory | Identified exit to Garrison 5111 | -6/Factory | Entered Garrison 5111 | -6/Garrison | Accompanied by 10 allies 5219 | -6/Garrison | Murdered 3 allies 5315 | -6/Garrison | Triggered checkpoint 5380 | -6/Garrison | Heavy support dispatched to Factory 5416 | -6/Garrison | Garrison Relay disabled 5572 | -6/Garrison | Triggered checkpoint 5587 | -6/Garrison | Triggered checkpoint 5588 | -6/Garrison | Spotted B-75 Beast 5606 | -6/Garrison | Allies destroyed B-75 Beast 5620 | -6/Garrison | Lost 3 allies 5641 | -6/Garrison | Triggered checkpoint 5758 | -6/Garrison | Build established: Hacker-Mutant 5847 | -6/Garrison | Discovered new exit (range 12) 5908 | -6/Garrison | Phase Generator disabled 5956 | -6/Garrison | Identified exit to Factory 5975 | -6/Garrison | Triggered checkpoint 6002 | -6/Garrison | Hacking Suite fried by hacking feedback 6148 | -6/Garrison | Found Prototype Device 6148 | -6/Garrison | Identified Active Sensor Suite 6223 | -6/Garrison | H-XX Assembler disabled 6300 | -6/Garrison | Build established: Construct 6521 | -6/Garrison | Discovered exit to Factory (range 47) 6521 | -6/Garrison | Discovered exit to Factory (range 65) 6521 | -6/Garrison | Discovered exit to Factory (range 10) 6546 | -6/Garrison | Triggered checkpoint 6655 | -6/Garrison | Spotted B-75 Beast 6671 | -6/Garrison | Core integrity fell below 50% 6751 | -6/Garrison | Found Relay Coupler [Proto] 6753 | -6/Garrison | Found Relay Coupler [Proto] 6800 | -6/Garrison | Core integrity fell below 20% 7071 | -6/Garrison | Entered Factory 7071 | -5/Factory | Evolved 2 slots: Utility x2 7134 | -5/Factory | Discovered new exit (range 15) 7153 | -5/Factory | Identified exit to Factory 7671 | -5/Factory | First assault squad dispatched 7827 | -5/Factory | High security lockdown imminent 7853 | -5/Factory | Cargo convoy interrupted 7867 | -5/Factory | System corruption reached 10% 7907 | -5/Factory | High security lockdown engaged 7921 | -5/Factory | Core integrity fell below 50% 7995 | -5/Factory | Lost 3 parts (1p2w) 7999 | -5/Factory | Core integrity fell below 20% 8008 | -5/Factory | Core destroyed Last Messages --------------- 07977_ Player 2 drops Adv. Heat Sink. 07977_ Player 2 removes Magnetic Acceleration Cannon. 07978_ System corrupted: Energy discharge (-15). 07978_ Player 2 drops Prototype Energy Cannon. 07986_ Arm. Scrap Engine consumes Cesium-ion Thruster. 07987_ Arm. Scrap Engine consumes Hrd. Heavy Armor Plating. 07988_ Acquired 35 matter. 07989_ Penetrated by Slug. 07990_ Arm. Scrap Engine consumes Hrd. Heavy Armor Plating. 08001_ System corrupted: Heat flow error (+268). 08002_ Penetrated by Slug. 08004_ Shock Trap short circuited. 08004_ H-66 Slayer destroyed. 08004_ The floor emits a surge of raw power. 08006_ Penetrated by Slug. Map ----- +----------------------------------------------------+ | ?????????????????????????????????????????????????? | | ?????????????????????????????????????????????????? | | ?????????????????????????????????????????????????? | | ?????????????????????????????????????????????????? | | ?????????????????????????????????????????????????? | | ?????????????????????????????????????????????????? | | ?????????????????????????????????????????????????? | | ?????????????????????????????????????????????????? | | ?????????????????????????????????????????????????? | | ?????????????????????????????????????????????????? | | ?????????????????????????????????????????????????? | | ??????????????????###????##+?????????????????????? | | ??????????????????# ??? ????????????????????? | | ??????????????????# ??" """ #?????????????????? | | ???????############ """ """ #?????????????????? | | ???????# # """ """ #?????????????????? | | ?####### """ !# #?????????????????? | | ?# # """ [ # "! """ """ #?????????????????? | | ## # """ #"%" """ """ #?????????????????? | | < + !!!# "" """ """ #?????????????????? | | ## # """ !!!# "%" #?????????????????? | | ?# # """ ! !!!# " ! #?????????????????? | | ?## ## """ # #?????????????????? | | ??# ## ! # #?????????????????? | | ??# ################+##/##"###?????????????????? | | ### #############??# @## #######?????????????? | | # # #??# ## ## # ###???????????? | | # # """ "" #??# ##%""""""""##??????????? | | # # """ """ #??# ;# " #?????#????? | | + / """ S" #??# /% != ### ##???? | | # # "" """ #??#^ = ?? | | # # / "" """ #??# ### #????? | | # # #??# ####+####??? | | # #############??# "# #??? | | ### #??????????????# ## " #??? | | ??# #??????????????# h g ##=% #??? | | ??# #??????????????# [% ##%! #??? | | ??# #??????????????# [= !%[ #??? | | ??# +??????????????# #### " "]*#= #??? | | ??# #??????????????# ## = " ]!%# #??? | | ??# #??????????????# ## " !%[%= #??? | | ?# #??????????????# ## "T" # % [= = #??? | | # #??????????????# ## """ # % **%%[ #??? | | # #??????????????#%######+## !! % #??? | | ? + +??????????????#[#????# ## ![== #######??? | | # #?????????????##%##???# ##""[%%=! #????????? | | # ############"###%[##### #"!!%!% #???????? | | ### % =[ %%%!% %= !! ![ ##???????? | | % % % % %=%=*%!| ! #????????? | | ### ! % *==[=!==% [%=%% #????????? | +----------------------------------------------------+ Best States ------------- Heat Dissipation 109 Energy Generation 23 Energy Capacity 500 Matter Stores 450 Matter Capacity 450 Sight Range 16 Robot Scan Range 20 Terrain Scan Range 16 Terrain Scan Density 10 Jamming Range 16 Base Temperature (-) 100 Armor Coverage 1025 Resistance: KI 20 Core Shielding 20 Weapon Cycling 20 Evasion (%) 50 Recoil Reduction 6 Offensive Hacking 10 Defensive Hacking 10 Authchip Count 2 Item Schematics ----------------- Multitool | -8/Materials | Scanalyzed Plasma Cutter | -8/Materials | Scanalyzed Sub. Shrapnel Launcher | -8/Materials | Scanalyzed Robot Schematics ------------------ None Fabricated ------------ Nothing Repaired ---------- Nothing Alien Tech Used ----------------- None Achievements -------------- None Challenges ------------ None Player 2 | -11 -10 -10 -8 -8 -8 -6 -6 -5 ---------- Run | Yrd Mat Sub Mat Sto Rec Fac Gar Fac Slots Evolved 10 | . . 4 . . 4 . 2 . Power 1 | . . . . . 1 . . . Propulsion 4 | . . 3 . . 1 . . . Utility 4 | . . 1 . . 2 . 1 . Weapon 1 | . . . . . . . 1 . Parts Attached 151 | . 12 5 18 17 . 6 63 30 Parts Lost 54 | . . . 4 6 . 1 26 17 Damage Taken 9290 | . 183 83 801 761 55 56 4422 2929 Core 1572 | . 18 29 45 36 . . 646 798 Player 2/Cogmind (%) 68 | . 72 19 55 12 . . 87 78 Absorbed by Shields . | . . . . . . . . . Damage Inflicted 11586 | . 250 481 611 1486 241 78 4785 3654 Player 2/Cogmind (%) 47 | . 59 40 26 41 45 79 52 53 Combat Hostiles Destroyed 84 | . 3 3 7 13 2 1 27 28 Player 2/Cogmind (%) 54 | . 75 30 33 59 40 100 57 63 Game ------ Seed StructuralPropulsionWeb Manual? 0 Play Time 01:52:14 Cumulative 182.4 hours Start 2025.05.22 @ 18:04:20 End 2025.05.22 @ 20:17:37 Sessions 3 Manual Loads 0 Difficulty Rogue Special Mode AFD2020/Player2 Game No. 204 Rogue 204 Adventurer 0 Explorer 0 Win Type - Total 1 Types 1/0/0/0/0/0/0/0/0/0 Lore% 70 Gallery% 70 Achievement% 61 Wizard Run 0 Options --------- Layout 1 ASCII 0 Keyboard 0 Movement Numpad Keybinds 0 Fullscreen 1 Font 24/Smallcaps Map View 50x35 Zoom Use 0% Tactical HUD 1 Map Filters NONE Filters NONE Steam 1 RUN: a849f72b-f8f4-4c51-bd16-51110484c22e